bitfinex/quotes_ETHUSD_20240707
["timestamp","ask_amount","ask_price","bid_price","bid_amount"]
[1720362417483,1.05063028,2971.1,2970.4,0.63251318]
[1720362417484,0.70042018,2971.1,2970.4,0.63251318]
[1720362418811,0.6998836,2971.1,2970.4,0.63251318]
[1720362418984,0.6998836,2971.1,2970.5,0.62301932]
[1720362419817,0.6998836,2970.9,2970.5,0.62301932]
[1720362420022,0.6998836,2970.9,2970.3,3.24108]
[1720362420324,0.6998836,2970.9,2970.4,0.06732497]
[1720362420531,0.6998836,2971.0,2970.4,0.06732497]
[1720362420690,0.6998836,2971.1,2970.3,3.24108]
[1720362421023,0.6998836,2970.9,2970.4,0.565188]
[1720362421241,0.6998836,2970.9,2970.3,3.24108]
[1720362421719,0.6998836,2971.0,2970.3,3.24108]
[1720362422120,0.6998836,2971.0,2970.4,0.06732497]
[1720362422422,0.96289579,2971.5,2970.9,2.35612]
[1720362422626,0.6998836,2971.6,2971.0,0.09195866]
[1720362422804,0.6998836,2971.6,2971.1,2.35602]
[1720362422994,0.6998836,2971.8,2971.1,2.35602]
[1720362423391,0.6998836,2971.8,2971.2,0.0673016]
[1720362423632,0.6998836,2972.0,2971.3,2.59819216]
[1720362423832,0.6998836,2972.0,2971.4,0.06729791]
[1720362424200,1.31283759,2972.2,2971.5,4.64604]
[1720362424201,0.26301219,2972.2,2971.5,4.64604]
[1720362424397,0.6993924,2972.1,2971.6,0.06729249]
[1720362424599,0.6993924,2972.2,2971.7,2.35554]
[1720362424799,3.14726581,2972.5,2971.9,2.35539]
[1720362425031,0.96240459,2972.6,2972.0,2.35531]
[1720362425238,0.26301219,2972.6,2972.0,2.42259258]
[1720362425441,0.6993924,2972.7,2972.1,2.3552]
[1720362425602,0.6993924,2972.8,2972.2,2.2904]
[1720362426011,0.6993924,2972.9,2972.2,2.2904]
[1720362426212,0.6993924,2972.9,2972.3,0.06727778]
[1720362426411,0.6993924,2972.9,2972.2,2.2904]
[1720362426621,0.6993924,2972.8,2972.2,2.2904]
[1720362427012,0.6993924,2972.7,2972.2,2.2904]
[1720362427339,3.0,2972.6,2971.7,2.2904]
[1720362427535,0.6993924,2972.7,2971.9,2.35538]
[1720362428413,0.6993924,2972.8,2971.9,2.35538]
[1720362428631,3.6993924,2972.8,2971.9,3.055506]
[1720362428814,0.6993924,2972.7,2971.9,3.055506]
[1720362429227,0.6993924,2972.7,2971.9,0.700126]
[1720362429431,0.6993924,2972.5,2971.7,2.2904]
[1720362429630,0.6993924,2972.5,2971.7,5.2904]
[1720362429932,0.6993924,2972.4,2971.6,3.0]
[1720362430109,0.6993924,2972.4,2971.4,5.35578]
[1720362430306,0.6993924,2972.4,2971.4,6.38021222]
[1720362430510,0.69962263,2972.4,2971.4,6.38021222]
[1720362430707,0.69962263,2972.4,2971.5,2.4229947]
[1720362430909,4.04943395,2972.5,2971.8,2.35546]
[1720362430910,0.69962263,2972.5,2971.8,2.35546]
[1720362431107,0.69962263,2972.5,2971.5,3.0672947]
[1720362431108,0.69962263,2972.6,2971.7,2.3555]
[1720362431317,0.69962263,2972.6,2972.0,2.35531]
[1720362431640,0.69962263,2972.7,2971.9,4.64572]
[1720362432043,0.69962263,2972.7,2971.9,7.00106]
[1720362432352,0.96263482,2972.8,2972.0,2.42258428]
[1720362432646,0.69962263,2972.9,2972.1,2.35522]
[1720362432849,0.69962263,2972.9,2972.2,0.06727941]
[1720362433033,0.69962263,2973.0,2972.3,0.06727942]
[1720362433240,0.96263482,2973.2,2972.3,0.06727942]
[1720362433446,0.69962263,2973.3,2972.6,2.2904]
[1720362433659,1.04943395,2973.4,2972.6,2.2904]
[1720362433660,0.69962263,2973.4,2972.6,2.2904]
[1720362433859,2.41232895,2973.3,2972.7,0.06726997]
[1720362434147,0.69962263,2973.4,2972.7,0.06726997]
[1720362434323,3.69962263,2973.4,2972.7,0.06726997]
[1720362434748,3.69962263,2973.4,2972.6,4.64518]
[1720362434928,0.69962263,2973.6,2972.8,2.35462]
[1720362435443,0.69962263,2973.7,2972.8,2.35462]
[1720362435865,0.69962263,2973.7,2972.8,2.3546]
[1720362436015,0.69962263,2973.8,2972.9,2.35459]
[1720362436443,0.69962263,2973.8,2972.8,2.3546]
[1720362436680,1.71253816,2973.7,2972.8,4.70921]
[1720362436831,0.69962263,2973.8,2972.8,4.70921]
[1720362437239,3.69962263,2973.9,2972.8,4.70921]
[1720362437459,1.71252406,2973.8,2972.8,4.70921]
[1720362438137,1.71252406,2973.8,2972.9,2.42183254]
[1720362438449,3.0,2973.9,2973.1,2.2542]
[1720362438646,3.0,2973.9,2973.2,0.06725648]
[1720362438846,3.0,2973.9,2973.1,4.60863]
[1720362439056,3.0,2973.9,2973.1,2.2542]
[1720362439473,3.0,2973.9,2973.1,4.60863]
[1720362443127,3.0,2973.9,2973.1,2.2542]
[1720362443932,3.0,2973.6,2972.9,3.0]
[1720362444132,3.0,2973.6,2972.7,4.66395]
[1720362444332,3.0,2973.6,2972.8,3.0]
[1720362444773,3.0,2973.6,2972.7,5.3092]
[1720362445225,3.0,2973.6,2972.7,7.66391]
[1720362445429,3.0,2974.0,2972.7,5.3092]
[1720362445643,3.0,2974.0,2972.9,2.35459]
[1720362445843,3.0,2974.0,2973.0,0.0672607]
[1720362446061,3.0,2974.0,2972.8,3.0]
[1720362446476,3.0,2974.0,2972.8,5.3546]
[1720362446701,3.0,2974.0,2972.9,2.35458]
[1720362446855,3.0,2974.0,2973.0,0.06726077]
[1720362448462,3.0,2974.0,2973.1,2.35442]
[1720362448798,3.0,2974.0,2973.3,2.3092]
[1720362449964,3.0,2974.0,2973.3,2.37645651]
[1720362450170,0.26301219,2974.2,2973.3,2.37645651]
[1720362450372,0.26301219,2974.2,2973.3,4.73071651]
[1720362450559,0.26301219,2974.2,2973.4,2.82726165]
[1720362450875,0.26301219,2974.2,2973.5,0.06725016]
[1720362451078,3.26301219,2974.6,2973.5,2.42137016]
[1720362451660,1.16477771,2974.5,2973.5,2.42137016]
[1720362451859,3.26301219,2974.6,2973.6,0.28944418]
[1720362452066,3.26301219,2974.6,2973.7,0.06724744]
[1720362452256,1.16474348,2974.5,2973.7,0.06724744]
[1720362452600,3.26301219,2974.6,2973.7,0.06724744]
[1720362452803,1.16474351,2974.5,2973.8,2.3092]
[1720362453005,0.26301219,2975.0,2973.9,2.65189692]
[1720362453210,3.0,2975.4,2973.9,2.58466]
[1720362453211,1.16469625,2974.9,2973.9,2.58466]
[1720362453525,3.0,2975.1,2973.9,0.23092]
[1720362453711,3.0,2974.8,2973.9,3.23092]
[1720362454174,3.0,2974.5,2973.4,2.3092]
[1720362454371,1.16465322,2974.4,2973.4,2.3092]
[1720362454618,1.16465322,2974.4,2973.5,0.06725346]
[1720362454772,3.0,2974.5,2973.4,2.3092]
[1720362455123,1.16476616,2974.4,2973.4,2.3092]
[1720362455288,0.26301219,2974.8,2973.5,2.820458]
[1720362455490,0.26301219,2974.8,2973.7,4.63289]
[1720362455689,1.1646316,2974.7,2973.9,2.3748]
[1720362455893,0.26301219,2974.8,2974.0,0.06723603]
[1720362456213,3.0,2975.1,2974.1,0.4795766]
[1720362456517,3.0,2975.1,2974.2,0.06723558]
[1720362456807,3.0,2975.1,2974.1,0.4795766]
[1720362457009,1.16451666,2975.0,2974.1,0.4795766]
[1720362457185,3.0,2974.7,2974.0,3.0]
[1720362457391,3.0,2974.7,2973.9,2.3748]
[1720362458289,3.0,2975.0,2973.9,2.3748]
[1720362458606,1.16461659,2974.9,2973.9,4.72861]
[1720362458816,0.26301219,2975.2,2974.0,3.84009746]
[1720362458985,1.16452272,2975.1,2974.0,3.84009746]
[1720362459194,1.16452272,2975.0,2974.0,3.84009746]
[1720362459415,3.0,2975.0,2974.0,3.84009746]
[1720362459618,3.0,2975.0,2974.0,3.0]
[1720362459780,3.0,2974.7,2973.9,2.3748]
[1720362459980,3.0,2975.1,2973.9,2.3748]
[1720362460185,1.16462288,2975.0,2974.0,2.3537]
[1720362460383,0.26301219,2975.2,2974.0,5.3537]
[1720362460583,1.1645367,2975.1,2974.1,1.008223]
[1720362460780,1.1645367,2975.0,2974.1,1.008223]
[1720362460985,0.26301219,2975.2,2974.1,1.008223]
[1720362461334,0.26301219,2975.2,2974.2,0.06723645]
[1720362461335,1.16452279,2975.1,2974.2,0.06723645]
[1720362461501,1.16452279,2975.0,2974.2,0.06723645]
[1720362461822,0.26301219,2975.2,2974.4,2.35341]
[1720362461990,0.26301219,2975.2,2974.5,0.235341]
[1720362465794,3.0,2975.3,2974.5,0.235341]
[1720362466126,3.0,2975.3,2974.3,2.35349]
[1720362466294,3.0,2975.0,2974.2,3.0]
[1720362466621,3.0,2975.0,2974.1,4.008223]
[1720362466799,3.0,2975.0,2974.1,1.008223]
[1720362467003,3.0,2975.3,2974.1,3.361853]
[1720362467321,2.87623149,2975.2,2974.2,3.8715583]
[1720362467491,3.0,2975.3,2974.2,3.8715583]
[1720362467691,2.87624934,2975.2,2974.2,3.8715583]
[1720362467917,3.0,2975.3,2974.2,3.8715583]
[1720362468218,3.0,2975.3,2974.4,2.4585]
[1720362468387,3.0,2975.3,2974.4,5.4585]
[1720362468586,3.0,2975.3,2974.4,7.81191]
[1720362468840,0.1098718,2975.5,2974.4,7.81191]
[1720362469128,2.87599525,2975.4,2974.5,2.35333]
[1720362469296,1.1643627,2975.4,2974.6,0.781183]
[1720362469498,0.1098718,2975.5,2974.6,0.781183]
[1720362469822,1.71157729,2975.4,2974.6,0.781183]
[1720362470019,0.1098718,2975.5,2974.6,0.781183]
[1720362470226,1.71157542,2975.4,2974.6,0.781183]
[1720362470523,1.71157542,2975.4,2974.7,0.3134513]
[1720362471525,0.1098718,2975.5,2974.7,0.38067867]
[1720362471687,0.1098718,2975.5,2974.7,0.3134513]
[1720362472820,3.1098718,2975.5,2974.7,0.3134513]
[1720362473023,3.0,2975.1,2974.4,2.4585]
[1720362474601,3.0,2975.1,2974.4,5.4585]
[1720362476534,3.0,2975.4,2974.4,5.4585]
[1720362476735,2.87608224,2975.3,2974.4,2.4585]
[1720362476930,3.0,2975.4,2974.4,2.4585]
[1720362476931,1.71166049,2975.2,2974.4,2.4585]
[1720362477132,3.0,2975.4,2974.4,2.0185]
[1720362477325,2.87605568,2975.3,2974.4,5.0185]
[1720362477523,1.71165497,2975.2,2974.4,7.37191]
[1720362477733,0.37288399,2975.5,2974.5,3.39309533]
[1720362477910,2.87600839,2975.4,2974.5,3.39309533]
[1720362478115,1.71163485,2975.3,2974.5,3.39309533]
[1720362478334,0.37288399,2975.5,2974.5,3.39309533]
[1720362478540,2.87589422,2975.4,2974.5,3.39309533]
[1720362478858,0.37288399,2975.5,2974.5,3.39309533]
[1720362478859,1.71156006,2975.3,2974.5,3.39309533]
[1720362479012,0.37288399,2975.5,2974.6,0.84115953]
[1720362479336,2.87589975,2975.4,2974.6,3.19440953]
[1720362479635,1.71155816,2975.3,2974.6,3.19440953]
[1720362479856,0.37288399,2975.5,2974.7,0.06722781]
[1720362480043,1.71153203,2975.4,2974.7,0.62871754]
[1720362480615,4.71153203,2975.4,2974.7,0.56148973]
[1720362480822,3.0,2975.4,2974.6,3.84115953]
[1720362481019,2.37586557,2975.3,2974.6,6.19439953]
[1720362481222,3.0,2975.4,2974.6,6.19439953]
[1720362481517,1.71150782,2975.3,2974.6,6.19439953]
[1720362481721,3.0,2975.4,2974.6,6.19439953]
[1720362482027,3.0,2975.4,2974.7,0.85476595]
[1720362482554,1.71151305,2975.3,2974.7,0.85476595]
[1720362483140,3.0,2975.4,2974.7,0.85476595]
[1720362483334,3.0,2975.4,2974.6,3.0]
[1720362483335,1.71152476,2975.3,2974.6,3.0]
[1720362483533,1.71152476,2975.3,2974.5,3.0]
[1720362485015,2.41100574,2975.3,2974.5,3.0]
[1720362485214,1.71152476,2975.2,2974.5,3.0]
[1720362485512,1.71152476,2975.2,2974.5,3.737186]
[1720362485713,3.69948098,2975.4,2974.5,3.737186]
[1720362485918,1.71160532,2975.3,2974.5,3.737186]
[1720362486938,1.71160532,2975.3,2974.6,2.42046705]
[1720362487139,0.80935278,2975.5,2974.7,2.35317]
[1720362487355,1.71148237,2975.4,2975.0,2.35294]
[1720362487585,0.1098718,2975.5,2975.1,2.35281]
[1720362488383,0.1098718,2975.5,2974.9,2.3336]
[1720362489831,2.41102666,2975.4,2974.8,3.0]
[1720362490062,2.41102666,2975.4,2974.5,4.6869]
[1720362490063,1.71154568,2975.3,2974.6,5.35325]
[1720362490945,1.16432507,2975.2,2974.6,5.35325]
[1720362491298,0.80935278,2975.5,2974.8,2.35305]
[1720362491463,2.8757225,2975.4,2974.8,2.35305]
[1720362491674,1.16426778,2975.4,2974.8,2.42027251]
[1720362491982,1.16426778,2975.3,2974.8,3.19764582]
[1720362492131,0.1098718,2975.5,2975.1,2.35285]
[1720362492336,0.1098718,2975.5,2975.2,2.3336]
[1720362492535,0.1098718,2975.5,2975.2,4.68633]
[1720362492780,0.1098718,2975.5,2975.3,0.71063949]
[1720362494085,0.1098718,2975.5,2974.9,5.35301]
[1720362494379,0.1098718,2975.5,2974.9,7.70596]
[1720362494580,0.1098718,2975.5,2974.9,7.70592]
[1720362494776,0.1098718,2975.5,2974.9,5.35295]
[1720362495396,0.1098718,2975.5,2974.9,5.35294]
[1720362495698,0.1098718,2975.5,2975.0,0.91360731]
[1720362495849,0.1098718,2975.5,2975.2,2.35277]
[1720362496793,0.1098718,2975.5,2975.3,2.41990454]
[1720362496936,0.1098718,2975.5,2975.3,2.35269]
[1720362497139,0.1098718,2975.5,2975.3,2.35265]
[1720362497474,0.1098718,2975.5,2975.4,0.235265]
[1720362497635,0.1098718,2975.5,2975.4,2.587885]
[1720362497836,0.1098718,2975.5,2975.4,0.235265]
[1720362499140,0.1098718,2975.5,2975.2,2.35272]
[1720362500434,0.1098718,2975.5,2975.1,3.0]
[1720362500641,0.81242309,2975.5,2974.9,3.0]
[1720362500835,0.70255129,2975.4,2974.8,3.0]
[1720362501066,0.70255129,2975.2,2974.5,2.35329]
[1720362501284,0.70255129,2975.1,2974.6,2.35324]
[1720362501586,0.70255129,2975.2,2974.6,5.35324]
[1720362501881,0.70255129,2975.2,2974.7,0.770653]
[1720362502097,0.70255129,2975.2,2974.8,2.42025698]
[1720362502235,0.70255129,2975.3,2974.8,5.42024698]
[1720362502577,0.70255129,2975.3,2974.8,7.70607]
[1720362503339,0.70255129,2975.2,2974.9,0.06722049]
[1720362503570,0.70255129,2975.2,2974.9,0.92161484]
[1720362503751,0.70255129,2975.2,2974.9,3.85439435]
[1720362503957,0.70255129,2975.2,2975.0,2.3517]
[1720362504155,0.70330884,2975.2,2974.9,6.20736435]
[1720362504373,0.70330884,2975.2,2974.9,3.0]
[1720362504578,1.75827211,2975.1,2974.7,3.0]
[1720362504749,0.70330884,2975.0,2974.7,3.0]
[1720362505072,0.70330884,2975.0,2974.6,2.35321]
[1720362507250,0.70330884,2975.0,2974.5,3.0]
[1720362507552,0.70330884,2974.9,2974.6,2.888577]
[1720362507754,0.70330884,2974.9,2974.7,3.0]
[1720362508068,0.70330884,2974.8,2974.7,3.0]
[1720362508272,0.70330884,2974.8,2974.5,5.3533]
[1720362508784,0.70330884,2974.8,2974.5,2.3533]
[1720362509029,0.70330884,2974.8,2974.2,2.3517]
[1720362509273,0.70330884,2974.5,2973.9,2.35375]
[1720362509473,0.70330884,2974.4,2973.8,2.35383]
[1720362509666,0.70330884,2974.4,2974.0,2.35368]
[1720362510475,0.70330884,2974.3,2973.9,0.470553]
[1720362510641,0.70330884,2974.3,2973.7,4.70562]
[1720362510843,0.70330884,2974.2,2973.7,2.3517]
[1720362511041,0.70330884,2974.0,2973.7,2.3517]
[1720362512244,0.70330884,2974.0,2973.2,2.3517]
[1720362512444,0.70330884,2974.0,2973.3,0.23517]
[1720362512445,0.70330884,2973.9,2973.3,0.23517]
[1720362512644,0.70330884,2973.8,2973.3,0.23517]
[1720362512961,0.70330884,2973.8,2973.4,2.35418]
[1720362513171,0.70330884,2973.8,2973.4,4.70832]
[1720362513350,0.70330884,2973.8,2973.4,2.35414]
[1720362513553,0.70330884,2973.9,2973.5,2.613041]
[1720362513772,0.70330884,2974.0,2973.5,2.613041]
[1720362513978,0.70330884,2973.9,2973.6,3.0]
[1720362514339,0.70330884,2973.9,2973.5,0.258931]
[1720362515080,0.26301219,2974.5,2973.5,0.258931]
[1720362515395,0.70360752,2973.9,2973.5,0.258931]
[1720362515549,0.70360752,2974.0,2973.5,0.258931]
[1720362517247,0.70360752,2974.1,2973.5,0.258931]
[1720362517949,0.70360752,2974.0,2973.5,0.258931]
[1720362518479,0.70326496,2974.0,2973.5,0.258931]
[1720362518653,0.70318682,2974.0,2973.5,0.258931]
[1720362519274,0.70318682,2974.1,2973.6,0.3258931]
[1720362519675,0.70318682,2974.2,2973.6,0.3258931]
[1720362520382,0.70318682,2974.4,2973.8,4.65818]
[1720362520685,0.70318682,2974.4,2973.8,2.3043]
[1720362521059,0.70318682,2974.3,2973.8,2.3043]
[1720362521593,1.05478023,2974.5,2973.8,2.3043]
[1720362521594,0.70318682,2974.4,2973.8,2.3043]
[1720362521798,0.70318682,2974.4,2973.9,0.06724627]
[1720362521997,0.70318682,2974.5,2973.9,0.06724627]
[1720362522697,0.70318682,2974.6,2973.9,0.06724627]
[1720362522894,0.70318682,2974.6,2973.9,2.42104627]
[1720362523097,0.70318682,2974.8,2974.1,2.35365]
[1720362523306,0.70318682,2974.8,2974.1,3.13111963]
[1720362523596,0.70318682,2974.8,2974.1,3.19835904]
[1720362523778,0.70318682,2974.9,2974.1,3.19835904]
[1720362524099,0.70318682,2975.0,2974.1,3.19835904]
[1720362524296,0.70318682,2975.0,2974.3,2.35344]
[1720362524500,0.70318682,2975.0,2974.4,0.06723263]
[1720362526871,0.70318682,2975.0,2974.2,0.3198359]
[1720362527105,0.70318682,2974.9,2974.2,0.3198359]
[1720362527262,1.05478023,2975.1,2974.2,0.3198359]
[1720362527263,0.70318682,2975.0,2974.2,0.3198359]
[1720362527468,0.70318682,2974.9,2974.3,0.06723281]
[1720362527882,0.70311605,2975.0,2974.3,0.06723281]
[1720362528081,0.70311605,2975.0,2974.3,2.42071281]
[1720362528301,0.70311612,2974.9,2974.2,0.3198359]
[1720362528628,0.70311612,2974.9,2973.9,3.0]
[1720362528919,0.70311612,2974.8,2973.9,5.3538]
[1720362529067,0.70311612,2974.7,2973.9,5.3538]
[1720362529488,0.70311612,2974.7,2974.0,2.35368]
[1720362529706,0.70311612,2974.8,2974.0,5.35368]
[1720362529912,0.70311612,2974.7,2974.0,3.0]
[1720362530069,0.70311612,2974.6,2973.9,3.0]
[1720362530465,0.70311612,2974.6,2973.9,5.35377]
[1720362530800,0.70311612,2974.6,2973.9,3.0]
[1720362531303,0.70311612,2974.6,2973.9,2.95]
[1720362532008,0.70311612,2974.7,2973.9,3.79065453]
[1720362532202,0.70311612,2974.9,2974.0,4.70732]
[1720362532423,0.70311612,2974.8,2974.1,2.42087871]
[1720362533802,0.70311612,2974.9,2974.1,2.42087871]
[1720362534012,4.05467419,2975.0,2974.1,2.42087871]
[1720362534013,0.70311612,2974.8,2974.1,3.21017332]
[1720362534302,0.70162602,2974.8,2974.0,2.35372]
[1720362534675,0.70162602,2974.7,2973.9,6.14445453]
[1720362534874,0.70162602,2974.7,2973.9,3.79065453]
[1720362535190,0.70162602,2974.7,2973.9,8.49821453]
[1720362535503,0.70162602,2974.8,2974.0,3.43396145]
[1720362535807,0.70162602,2974.8,2974.1,3.0]
[1720362538108,0.70162602,2974.6,2974.1,3.0]
[1720362538315,0.70162602,2974.7,2973.9,3.0]
[1720362538626,1.16461968,2974.6,2973.9,3.0]
[1720362538773,0.70162602,2974.7,2974.0,2.35372]
[1720362538975,0.70162602,2974.8,2974.1,2.35363]
[1720362539213,0.70162602,2974.9,2974.1,5.35363]
[1720362539535,0.3519548,2975.3,2974.6,2.279]
[1720362539823,0.1098718,2975.5,2975.0,2.35288]
[1720362540131,0.1098718,2975.5,2975.1,2.35286]
[1720362540473,0.1098718,2975.5,2974.8,3.0]
[1720362540721,0.1098718,2975.5,2974.7,2.35316]
[1720362540722,0.81149782,2975.5,2974.7,2.35316]
[1720362541026,0.81149782,2975.5,2974.9,2.35294]
[1720362541203,0.1098718,2975.5,2974.9,2.35294]
[1720362541378,0.81149782,2975.5,2974.9,2.35294]
[1720362541838,0.70162602,2975.4,2974.8,3.0]
[1720362541979,0.70162602,2975.4,2974.7,2.35317]
[1720362542427,0.70162602,2975.4,2974.7,4.70629]
[1720362542627,0.81149782,2975.5,2974.8,3.0]
[1720362542989,0.70167485,2975.4,2974.7,2.35312]
[1720362543304,0.70167485,2975.4,2974.7,3.123761]
[1720362543493,0.70167485,2975.4,2974.8,3.0]
[1720362544206,0.70167485,2975.4,2974.8,5.4202463]
[1720362544385,0.81154665,2975.5,2974.8,5.4202463]
[1720362544590,0.70167485,2975.4,2974.8,5.4202463]
[1720362544813,0.81154665,2975.5,2974.9,2.97205873]
[1720362545914,0.81154665,2975.5,2975.0,2.4201331]
[1720362546207,0.1098718,2975.5,2975.2,2.35277]
[1720362547413,0.1098718,2975.5,2975.4,2.35262]
[1720362547712,0.1098718,2975.5,2975.4,2.82988072]
[1720362548098,0.1098718,2975.5,2975.3,3.0]
[1720362548279,0.1098718,2975.5,2975.2,2.35273]
[1720362548614,0.1098718,2975.5,2975.3,2.3527]
[1720362548781,0.1098718,2975.5,2975.3,3.0]
[1720362548981,0.1098718,2975.5,2975.1,5.35279]
[1720362549182,0.1098718,2975.5,2975.1,5.35285]
[1720362549603,0.1098718,2975.5,2975.2,3.0]
[1720362549803,0.1098718,2975.5,2975.0,3.0]
[1720362549980,0.1098718,2975.5,2975.1,2.95004387]
[1720362550298,0.1098718,2975.5,2975.2,3.0]
[1720362552009,0.81196222,2975.5,2974.8,2.35308]
[1720362552181,0.81196222,2975.5,2974.8,5.35308]
[1720362552375,0.81196222,2975.5,2974.8,3.0]
[1720362552582,0.70209042,2975.4,2974.7,5.35317]
[1720362552777,0.70209042,2975.4,2974.2,2.35357]
[1720362552981,0.70209042,2975.1,2974.2,4.70708]
[1720362553190,0.70209042,2975.1,2974.3,2.35346]
[1720362553513,0.70209042,2975.0,2974.3,2.35346]
[1720362553720,0.70209042,2975.1,2974.3,2.35346]
[1720362553915,0.70209042,2975.1,2974.4,0.470697]
[1720362554297,0.70209042,2975.1,2974.4,3.470697]
[1720362554497,0.70209042,2975.1,2974.4,0.470697]
[1720362555583,0.70096912,2975.1,2974.4,0.470697]
[1720362555790,0.70096912,2975.1,2974.4,3.470697]
[1720362556095,0.70097925,2975.1,2974.4,3.470697]
[1720362556593,0.70097925,2975.3,2974.8,2.35307]
[1720362556794,0.70097925,2975.3,2974.5,3.3470697]
[1720362556795,0.70097925,2975.3,2974.5,0.3470697]
[1720362556999,0.70097925,2975.2,2974.5,3.0]
[1720362557417,0.70097925,2975.1,2974.5,3.0]
[1720362558531,3.70097925,2975.1,2974.5,3.0]
[1720362558691,0.70097925,2975.0,2974.3,3.0]
[1720362558896,0.70097925,2975.0,2974.2,5.35353]
[1720362559164,0.70097925,2974.9,2974.2,5.35353]
[1720362559320,0.70097925,2974.9,2974.2,6.363721]
[1720362559843,0.70097925,2975.0,2974.2,6.363721]
[1720362560142,0.70097925,2975.0,2974.5,2.35332]
[1720362560341,1.40195851,2975.3,2974.5,2.35332]
[1720362560342,0.70097925,2975.2,2974.6,2.42043684]
[1720362560549,0.70097925,2975.3,2974.6,2.42043684]
[1720362560699,0.70097925,2975.3,2974.7,0.47737568]
[1720362561038,3.02617925,2975.3,2974.4,3.0]
[1720362561236,0.70097925,2975.2,2974.5,2.35327]
[1720362561438,2.41250475,2975.2,2974.5,2.35327]
[1720362561668,0.70097925,2975.1,2974.6,2.35325]
[1720362561796,0.70097925,2975.2,2974.6,2.35325]
[1720362562413,2.41254246,2975.1,2974.5,3.0]
[1720362562612,0.70097925,2975.1,2974.5,5.35332]
[1720362563233,0.70097925,2975.1,2974.6,2.35325]
[1720362563942,0.70097925,2975.1,2974.5,3.0]
[1720362564150,0.70097925,2974.9,2974.3,3.0]
[1720362564511,0.70097925,2974.9,2974.3,5.35347]
[1720362565311,0.70097925,2974.8,2974.3,5.35347]
[1720362565617,0.70279054,2974.8,2974.4,1.0996181]
[1720362566700,0.70279054,2974.7,2974.4,1.0996181]
[1720362567127,0.70279054,2974.8,2974.4,1.0996181]
[1720362567405,0.70279054,2974.9,2974.4,1.0996181]
[1720362567605,2.41441533,2974.8,2974.4,1.0996181]
[1720362567800,0.70279054,2974.8,2974.4,1.0996181]
[1720362568431,0.20279054,2974.8,2974.5,0.49602816]
[1720362568803,1.71169835,2974.7,2974.4,1.0996181]
[1720362569003,1.71169835,2974.7,2974.3,3.0]
[1720362569213,1.71169835,2974.7,2974.2,5.35352]
[1720362569768,1.05418581,2974.9,2974.2,5.35352]
[1720362569918,1.71166116,2974.8,2974.2,5.35352]
[1720362570540,1.71166116,2974.8,2974.3,2.35344]
[1720362570750,1.71166116,2974.8,2974.4,0.770696]
[1720362571216,1.40558108,2975.1,2974.4,0.770696]
[1720362571217,1.05418581,2975.2,2974.6,2.35324]
[1720362571433,1.71152261,2975.1,2974.6,2.35324]
[1720362571638,1.71152261,2975.0,2974.6,2.35324]
[1720362571838,2.76565153,2975.0,2974.6,3.5009746]
[1720362572123,1.71152261,2974.9,2974.6,3.5009746]
[1720362572358,1.05412892,2975.1,2974.6,3.5009746]
[1720362572726,1.71155667,2975.0,2974.6,3.5009746]
[1720362573132,2.76568559,2975.0,2974.6,3.5009746]
[1720362573337,1.71155667,2974.9,2974.6,3.5009746]
[1720362573860,1.05412892,2975.0,2974.6,3.5009746]
[1720362574061,1.71156303,2974.9,2974.6,3.5009746]
[1720362574428,1.05412892,2975.1,2974.6,3.5009746]
[1720362574630,1.71154386,2975.0,2974.6,3.5009746]
[1720362576549,2.76567278,2975.0,2974.6,1.1477346]
[1720362576761,2.76567278,2975.0,2974.5,3.0]
[1720362576762,1.71154386,2974.9,2974.5,5.35328]
[1720362577483,1.71154386,2974.9,2974.6,2.35325]
[1720362577987,1.05412892,2975.1,2974.6,2.35325]
[1720362578286,2.7656354,2975.0,2974.6,2.35325]
[1720362578470,2.41472907,2974.9,2974.7,0.535325]
[1720362578669,0.70322259,2974.9,2974.7,0.535325]
[1720362579290,1.71152328,2974.8,2974.7,0.535325]
[1720362579498,0.70322259,2974.9,2974.7,0.535325]
[1720362579865,0.70322259,2974.9,2974.5,3.0]
[1720362579866,2.41473891,2974.8,2974.5,3.0]
[1720362580064,0.70322259,2974.7,2974.3,5.35348]
[1720362580669,0.70322259,2974.7,2974.3,3.0]
[1720362580876,1.7116613,2974.6,2974.3,2.35346]
[1720362581199,1.7116613,2974.6,2974.3,6.363628]
[1720362581493,2.41488389,2974.6,2974.4,2.35341]
[1720362581801,0.70322259,2974.7,2974.4,5.35341]
[1720362582008,1.71163224,2974.6,2974.4,5.35341]
[1720362582209,0.70322259,2974.7,2974.5,0.6363578]
[1720362582506,1.7116269,2974.6,2974.5,3.6363578]
[1720362582686,2.41484949,2974.6,2974.5,3.0]
[1720362582881,2.41484949,2974.6,2974.3,6.363648]
[1720362583066,0.70322259,2974.6,2974.4,2.3534]
[1720362583271,0.70322259,2974.6,2974.4,5.3534]
[1720362583467,0.70322259,2974.6,2974.4,3.0]
[1720362584074,1.71167256,2974.5,2974.3,4.010168]
[1720362584301,0.7040665,2974.6,2974.4,0.6363678]
[1720362584506,2.41574724,2974.5,2974.3,5.35349]
[1720362584781,0.7040665,2974.5,2974.3,5.35349]
[1720362585004,0.7040665,2974.5,2974.3,2.35349]
[1720362585714,0.7040665,2974.5,2974.2,5.35356]
[1720362588313,0.7040665,2974.5,2974.2,3.0]
[1720362588621,0.7040665,2974.5,2974.3,0.53947]
[1720362591392,0.7040665,2974.5,2974.4,2.2968]
[1720362591594,0.7040665,2974.8,2974.5,2.35329]
[1720362591800,1.05609975,2974.9,2974.5,2.35329]
[1720362591801,0.7040665,2974.9,2974.5,5.35329]
[1720362592017,2.41554605,2974.8,2974.6,1.30035]
[1720362592326,0.7040665,2974.8,2974.6,4.30035]
[1720362592490,0.7040665,2974.8,2974.6,6.65355]
[1720362592696,0.7040665,2974.8,2974.7,0.949]
[1720362592897,2.4155833,2974.8,2974.7,0.949]
[1720362593311,2.4155833,2974.8,2974.7,1.944584]
[1720362593844,1.7115168,2974.8,2974.7,4.297754]
[1720362594142,2.41647399,2974.8,2974.7,4.297754]
[1720362594292,1.7115168,2974.8,2974.7,4.297754]
[1720362594696,1.7115168,2974.8,2974.7,3.348754]
[1720362595095,2.76930818,2974.8,2974.7,3.348754]
[1720362595612,2.7692437,2974.8,2974.7,3.348754]